bitfinex/quotes_SOLUSD_20220306
["timestamp","ask_amount","ask_price","bid_price","bid_amount"]
[1646531270987,1.51017676,89.254,89.211,66.81]
[1646531271188,1.51017676,89.254,89.212,2.83613526]
[1646531271387,1.51017676,89.253,89.212,2.83613526]
[1646531271988,1.51017676,89.254,89.212,2.83613526]
[1646531273588,1.51017676,89.254,89.212,19.95533526]
[1646531273788,1.51017676,89.254,89.213,66.81]
[1646531273988,1.51017676,89.254,89.213,69.64613526]
[1646531274188,1.51017676,89.254,89.214,2.83613526]
[1646531274389,1.51017676,89.254,89.216,66.81]
[1646531274589,1.51017676,89.253,89.216,66.81]
[1646531274792,1.51017676,89.254,89.217,2.83613526]
[1646531275290,1.51017676,89.262,89.221,66.81]
[1646531275490,1.51017676,89.263,89.221,66.81]
[1646531275693,1.51017676,89.262,89.222,2.83613526]
[1646531276093,1.51017676,89.263,89.224,66.81]
[1646531276499,1.51017676,89.263,89.225,2.83613526]
[1646531276898,1.51017676,89.262,89.225,2.83613526]
[1646531278601,1.51017676,89.261,89.225,2.83613526]
[1646531278801,23.7254,89.27,89.225,2.83613526]
[1646531278802,1.51017676,89.262,89.225,2.83613526]
[1646531280424,1.51017676,89.261,89.225,2.83613526]
[1646531280625,1.51017676,89.261,89.216,66.81]
[1646531280822,1.51017676,89.251,89.216,66.81]
[1646531281223,1.51017676,89.25,89.216,66.81]
[1646531281623,1.51017676,89.253,89.217,2.83613526]
[1646531282022,1.51017676,89.254,89.217,2.83613526]
[1646531282722,1.51017676,89.253,89.217,2.83613526]
[1646531282923,1.51017676,89.252,89.217,2.83613526]
[1646531283127,1.51017676,89.251,89.217,2.83613526]
[1646531283423,1.51017676,89.248,89.217,2.83613526]
[1646531283623,6.12912245,89.269,89.217,2.83613526]
[1646531283624,1.51017676,89.249,89.217,2.83613526]
[1646531284425,1.51017676,89.248,89.217,2.83613526]
[1646531286125,1.51017676,89.245,89.217,2.83613526]
[1646531286625,1.51017676,89.244,89.217,2.83613526]
[1646531287227,1.51017676,89.245,89.217,2.83613526]
[1646531287530,1.51017676,89.244,89.217,2.83613526]
[1646531289129,1.51017676,89.245,89.217,2.83613526]
[1646531290134,1.51017676,89.244,89.216,66.81]
[1646531290595,1.51017676,89.243,89.216,66.81]
[1646531290733,1.51017676,89.246,89.216,66.81]
[1646531290937,1.51017676,89.252,89.216,66.81]
[1646531291133,1.51017676,89.248,89.217,2.83613526]
[1646531291333,1.51017676,89.249,89.217,2.83613526]
[1646531291932,1.51017676,89.248,89.217,2.83613526]
[1646531296935,1.51017676,89.247,89.217,2.83613526]
[1646531297534,1.51017676,89.248,89.217,2.83613526]
[1646531297738,1.51017676,89.247,89.217,2.83613526]
[1646531299639,1.51017676,89.246,89.217,2.83613526]
[1646531299841,1.51017676,89.244,89.217,2.83613526]
[1646531300242,1.51017676,89.242,89.217,2.83613526]
[1646531300439,6.12909144,89.269,89.217,2.83613526]
[1646531300440,1.51017676,89.244,89.217,2.83613526]
[1646531305945,1.51017676,89.243,89.217,2.83613526]
[1646531306849,1.51017676,89.24,89.217,2.83613526]
[1646531307547,1.51017676,89.241,89.217,2.83613526]
[1646531308551,1.51017676,89.244,89.217,2.83613526]
[1646531308752,1.51017676,89.245,89.217,2.83613526]
[1646531309151,1.51017676,89.242,89.217,2.83613526]
[1646531309953,1.51017676,89.243,89.217,2.83613526]
[1646531310561,1.51017676,89.238,89.218,66.81]
[1646531310755,1.51017676,89.237,89.218,66.81]
[1646531311155,1.51017676,89.237,89.219,5.603]
[1646531311457,1.51017676,89.238,89.219,5.603]
[1646531312155,1.51017676,89.239,89.218,66.81]
[1646531312557,1.51017676,89.238,89.216,66.81]
[1646531312762,3.03211574,89.264,89.216,66.81]
[1646531312763,1.51017676,89.239,89.216,66.81]
[1646531313160,1.51017676,89.238,89.216,66.81]
[1646531313357,1.51017676,89.238,89.218,66.81]
[1646531313557,1.51017676,89.238,89.219,5.603]
[1646531314377,1.51017676,89.238,89.215,24.1352]
[1646531314675,1.51017676,89.236,89.215,24.1352]
[1646531315677,1.51017676,89.235,89.215,24.1352]
[1646531316075,1.51017676,89.236,89.215,24.1352]
[1646531316277,1.51017676,89.237,89.215,24.1352]
[1646531318882,1.51017676,89.238,89.215,24.1352]
[1646531319484,1.51017676,89.238,89.216,5.603]
[1646531319684,1.51017676,89.237,89.216,5.603]
[1646531319983,1.51017676,89.237,89.209,5.603]
[1646531320384,1.51017676,89.237,89.21,2.83613526]
[1646531320583,1.51017676,89.234,89.211,5.603]
[1646531320984,1.51017676,89.235,89.211,5.603]
[1646531321885,1.51017676,89.235,89.202,23.296]
[1646531322085,1.51017676,89.233,89.202,23.296]
[1646531322386,1.51017676,89.232,89.202,23.296]
[1646531323288,1.51017676,89.233,89.202,23.296]
[1646531324185,1.51017676,89.233,89.199,28.43312713]
[1646531324386,1.51017676,89.233,89.183,5.604]
[1646531324387,1.51017676,89.233,89.186,25.59699187]
[1646531324585,1.51017676,89.222,89.187,5.604]
[1646531324985,1.51017676,89.227,89.187,5.604]
[1646531325185,23.996,89.246,89.187,5.604]
[1646531325186,1.51017676,89.226,89.188,52.50604343]
[1646531325388,1.51017676,89.225,89.187,5.604]
[1646531325588,1.51017676,89.222,89.187,5.604]
[1646531325889,1.51017676,89.218,89.187,5.604]
[1646531326288,1.51017676,89.216,89.186,25.59699187]
[1646531327388,1.51017676,89.215,89.186,25.59699187]
[1646531327787,1.51017676,89.22,89.186,25.59699187]
[1646531328787,1.51017676,89.221,89.179,53.85876518]
[1646531328987,1.51017676,89.22,89.179,53.85876518]
[1646531329187,1.51017676,89.219,89.179,53.85876518]
[1646531329387,1.51017676,89.22,89.18,5.605]
[1646531329989,1.51017676,89.219,89.18,5.605]
[1646531330488,1.51017676,89.22,89.18,5.605]
[1646531330689,1.51017676,89.219,89.18,5.605]
[1646531330893,1.51017676,89.222,89.18,5.605]
[1646531331089,1.51017676,89.225,89.18,31.20199187]
[1646531332290,1.51017676,89.224,89.18,31.20199187]
[1646531332490,1.51017676,89.224,89.18,5.605]
[1646531332889,1.51017676,89.223,89.18,5.605]
[1646531333089,1.51017676,89.221,89.18,5.605]
[1646531333690,1.51017676,89.223,89.18,5.605]
[1646531334492,1.51017676,89.223,89.179,53.85876518]
[1646531334792,1.51017676,89.222,89.179,53.85876518]
[1646531336794,5.605,89.235,89.179,53.85876518]
[1646531336795,1.51017676,89.223,89.179,53.85876518]
[1646531337594,1.51017676,89.223,89.164,5.605]
[1646531337996,1.51017676,89.222,89.164,5.605]
[1646531338597,1.51017676,89.221,89.165,58.42446]
[1646531340296,1.51017676,89.22,89.165,58.42446]
[1646531340500,1.51017676,89.212,89.165,58.42446]
[1646531340896,1.51017676,89.211,89.165,58.42446]
[1646531341297,1.51017676,89.212,89.165,58.42446]
[1646531341497,1.51017676,89.213,89.165,58.42446]
[1646531341698,1.51017676,89.214,89.165,58.42446]
[1646531342098,23.4911,89.226,89.165,58.42446]
[1646531342099,1.51017676,89.215,89.165,58.42446]
[1646531342299,1.51017676,89.214,89.165,58.42446]
[1646531342499,1.51017676,89.215,89.165,58.42446]
[1646531342700,1.51017676,89.214,89.165,58.42446]
[1646531343401,1.51017676,89.213,89.165,58.42446]
[1646531343603,1.51017676,89.214,89.165,58.42446]
[1646531343801,1.51017676,89.215,89.165,58.42446]
[1646531345004,1.51017676,89.216,89.165,58.42446]
[1646531346005,1.51017676,89.215,89.165,58.42446]
[1646531346807,1.51017676,89.215,89.166,23.4535]
[1646531347406,1.51017676,89.216,89.166,23.4535]
[1646531348907,23.4911,89.226,89.166,23.4535]
[1646531348908,1.51017676,89.213,89.167,66.81]
[1646531349108,1.51017676,89.215,89.167,66.81]
[1646531349307,1.51017676,89.216,89.167,66.81]
[1646531349509,1.51017676,89.216,89.167,90.06699187]
[1646531350009,1.51017676,89.217,89.167,90.06699187]
[1646531351713,1.51017676,89.213,89.167,90.06699187]
[1646531353615,1.51017676,89.212,89.167,90.06699187]
[1646531354216,1.51017676,89.213,89.167,90.06699187]
[1646531354417,1.51017676,89.212,89.167,90.06699187]
[1646531354819,1.51017676,89.21,89.167,90.06699187]
[1646531355437,1.51017676,89.212,89.167,90.06699187]
[1646531355840,1.51017676,89.212,89.167,66.81]
[1646531357239,1.51017676,89.213,89.167,66.81]
[1646531357839,23.4911,89.226,89.167,66.81]
[1646531357840,1.51017676,89.212,89.167,66.81]
[1646531359142,1.51017676,89.212,89.167,90.06699187]
[1646531359946,1.51017676,89.212,89.167,23.25699187]
[1646531360646,1.51017676,89.211,89.168,66.81]
[1646531361050,1.51017676,89.211,89.168,90.06699187]
[1646531361949,1.51017676,89.212,89.168,90.06699187]
[1646531362151,1.51017676,89.211,89.168,90.06699187]
[1646531362354,1.51017676,89.212,89.168,90.06699187]
[1646531362852,1.51017676,89.21,89.168,90.06699187]
[1646531363351,1.51017676,89.209,89.168,90.06699187]
[1646531363653,23.4911,89.226,89.168,90.06699187]
[1646531367449,23.4911,89.226,89.17,66.81]
[1646531367544,23.4911,89.226,89.172,66.81]
[1646531367602,23.4911,89.226,89.174,66.81]
[1646531367633,23.4911,89.226,89.176,66.81]
[1646531367660,23.4911,89.226,89.178,66.81]
[1646531367669,23.4911,89.226,89.179,30.2171]
[1646531372661,23.4911,89.226,89.179,24.6121]
[1646531374162,23.4911,89.226,89.18,66.81]
[1646531374365,23.4911,89.226,89.182,66.81]
[1646531374562,23.4911,89.226,89.184,66.81]
[1646531374764,23.4911,89.226,89.186,66.81]
[1646531374973,23.4911,89.226,89.188,66.81]
[1646531375264,23.4911,89.226,89.189,5.604]
[1646531375663,23.4911,89.226,89.189,30.0566]
[1646531378367,23.4911,89.226,89.189,24.4526]
[1646531379867,5.604,89.243,89.19,66.81]
[1646531380072,22.8092,89.242,89.192,66.81]
[1646531380470,22.8092,89.242,89.194,66.81]
[1646531380669,22.8092,89.242,89.189,34.1726]
[1646531380670,22.8092,89.242,89.196,128.80453902]
[1646531380871,22.8092,89.242,89.198,66.81]
[1646531381070,22.8092,89.242,89.199,5.604]
[1646531381270,22.8092,89.242,89.2,23.5919]
[1646531381491,22.8092,89.242,89.201,5.604]
[1646531385685,5.604,89.258,89.202,66.81]
[1646531385887,28.78523731,89.257,89.204,66.81]
[1646531386086,5.603,89.256,89.206,66.81]
[1646531386385,11.73343731,89.256,89.208,66.81]
[1646531386586,5.603,89.256,89.209,5.603]
[1646531387386,5.603,89.256,89.2,23.5919]
[1646531387387,5.603,89.256,89.203,66.81]
[1646531387588,22.6548,89.257,89.205,66.81]
[1646531387788,22.6548,89.257,89.207,66.81]
[1646531387988,6.1303174,89.256,89.208,72.413]
[1646531388390,22.6548,89.257,89.208,72.413]
[1646531394504,22.6548,89.257,89.208,5.603]
[1646531394701,22.6548,89.257,89.201,5.603]
[1646531395703,22.6548,89.257,89.202,66.81]
[1646531395903,22.6548,89.257,89.204,66.81]
[1646531396102,22.6548,89.257,89.206,66.81]
[1646531396305,22.6548,89.257,89.208,66.81]
[1646531396603,22.6548,89.257,89.209,5.603]
[1646531396804,22.6548,89.257,89.21,66.81]
[1646531397004,22.6548,89.257,89.212,66.81]
[1646531397403,22.6548,89.257,89.213,5.603]
[1646531398604,22.6548,89.257,89.211,24.9304]
[1646531399005,111.5,89.256,89.181,2.83613526]
[1646531399204,111.5,89.256,89.187,23.0118]
[1646531399404,22.6548,89.257,89.188,5.604]
[1646531400111,22.6548,89.257,89.188,72.414]
[1646531400508,6.13075603,89.256,89.188,72.414]
[1646531400707,5.603,89.255,89.188,66.81]
[1646531401109,5.604,89.256,89.188,66.81]
[1646531402106,22.6548,89.257,89.188,66.81]
[1646531403208,5.603,89.256,89.188,66.81]
[1646531403808,6.13053392,89.255,89.188,66.81]
[1646531405212,5.604,89.254,89.188,66.81]
[1646531405412,6.13053392,89.253,89.188,66.81]
[1646531405610,5.604,89.252,89.188,66.81]
[1646531405812,5.604,89.256,89.188,66.81]
[1646531406311,6.1304989,89.255,89.188,66.81]
[1646531406512,5.604,89.254,89.188,66.81]
[1646531406913,5.604,89.256,89.188,66.81]
[1646531407114,6.13045029,89.255,89.19,83.6242]
[1646531407314,22.6548,89.257,89.19,99.6142]
[1646531407513,3.03211574,89.276,89.192,66.81]
[1646531407719,30.49746382,89.277,89.192,66.81]
[1646531407913,11.73216382,89.276,89.194,66.81]
[1646531408114,6.12916382,89.275,89.194,66.81]
[1646531408317,5.603,89.274,89.196,66.81]
[1646531408515,5.603,89.274,89.201,66.81]
[1646531408914,5.603,89.276,89.203,66.81]
[1646531409115,6.12887718,89.275,89.211,66.81]
[1646531409316,5.602,89.274,89.215,66.81]
[1646531409516,5.602,89.276,89.215,66.81]
[1646531411321,24.3683,89.277,89.215,66.81]
[1646531420740,24.3683,89.277,89.215,100.58312713]
[1646531420936,15.99,89.33,89.215,100.58312713]
[1646531420937,3.03211574,89.296,89.215,100.58312713]
[1646531421135,3.03211574,89.297,89.221,66.81]
[1646531421335,3.03211574,89.297,89.223,66.81]
[1646531421545,3.03211574,89.3,89.223,66.81]
[1646531421735,5.601,89.299,89.223,66.81]
[1646531421935,6.12827649,89.298,89.223,66.81]
[1646531422336,5.601,89.297,89.223,66.81]
[1646531422537,30.55637649,89.296,89.223,66.81]
[1646531422750,11.72927649,89.295,89.223,66.81]
[1646531422957,6.12827649,89.294,89.223,66.81]
[1646531423149,5.601,89.293,89.223,66.81]
[1646531423550,6.12827649,89.292,89.223,66.81]
[1646531423755,5.601,89.291,89.223,66.81]
[1646531423952,5.601,89.295,89.223,66.81]
[1646531424152,6.12813721,89.294,89.223,66.81]
[1646531424354,5.601,89.293,89.223,66.81]
[1646531424753,5.601,89.295,89.223,66.81]
[1646531424955,6.12811293,89.294,89.223,66.81]
[1646531425153,5.601,89.293,89.223,66.81]
[1646531425857,5.601,89.295,89.223,66.81]
[1646531426059,6.12808937,89.294,89.223,66.81]
[1646531426255,5.601,89.293,89.223,66.81]
[1646531426658,5.601,89.295,89.223,66.81]
[1646531426861,6.1283981,89.294,89.223,66.81]
[1646531427058,5.601,89.293,89.223,66.81]
[1646531427359,6.1283981,89.292,89.223,66.81]
[1646531427557,5.601,89.291,89.223,66.81]
[1646531427757,6.1283981,89.29,89.223,66.81]
[1646531427957,5.601,89.289,89.223,66.81]
[1646531428359,5.601,89.295,89.223,66.81]
[1646531428559,6.12835191,89.294,89.223,66.81]
[1646531428959,6.12835191,89.295,89.223,66.81]
[1646531429158,6.12835191,89.293,89.223,66.81]
[1646531429361,6.12835191,89.294,89.223,66.81]
[1646531429560,6.12835191,89.295,89.223,66.81]
[1646531430564,3.03211574,89.29,89.223,66.81]
[1646531430765,3.03211574,89.293,89.223,66.81]
[1646531431064,5.601,89.292,89.223,66.81]
[1646531431261,6.12835191,89.291,89.223,66.81]
[1646531432664,6.12835191,89.294,89.223,66.81]
[1646531432863,8.63311574,89.293,89.223,66.81]
[1646531433064,9.16046765,89.292,89.223,66.81]
[1646531433264,5.601,89.291,89.223,66.81]
[1646531433465,6.12835191,89.29,89.223,66.81]
[1646531433964,3.03211574,89.292,89.223,66.81]
[1646531434866,5.601,89.291,89.223,66.81]
[1646531435165,6.12835191,89.29,89.223,66.81]
[1646531435365,5.601,89.289,89.223,66.81]
[1646531435566,8.63311574,89.289,89.223,66.81]
[1646531435768,6.12835191,89.288,89.223,66.81]
[1646531435967,5.601,89.287,89.223,66.81]
[1646531436169,28.98695191,89.286,89.223,66.81]
[1646531436467,6.12835191,89.285,89.223,66.81]
[1646531437767,9.16046765,89.285,89.223,66.81]
[1646531437967,3.03211574,89.283,89.223,66.81]
[1646531438167,6.95918227,89.282,89.223,66.81]
[1646531438367,6.12835191,89.281,89.223,66.81]
[1646531439670,9.16046765,89.285,89.223,66.81]
[1646531439868,6.12835191,89.285,89.223,66.81]
[1646531453379,6.12835191,89.285,89.225,66.81]
[1646531453581,6.12835191,89.285,89.227,66.81]
[1646531453782,6.12835191,89.285,89.229,66.81]
[1646531454082,6.12835191,89.285,89.231,66.81]
[1646531454281,6.12835191,89.285,89.233,66.81]
[1646531454481,6.12835191,89.285,89.235,66.81]
[1646531454683,6.12835191,89.285,89.237,66.81]
[1646531454882,6.12835191,89.285,89.238,89.3959]
[1646531455081,6.12835191,89.285,89.239,5.601]
[1646531457481,6.12835191,89.285,89.238,89.3959]
[1646531460487,3.03211574,89.282,89.238,89.3959]
[1646531460687,3.03211574,89.283,89.238,89.3959]
[1646531460886,9.16046765,89.285,89.238,89.3959]
[1646531461085,6.12835191,89.285,89.238,89.3959]
[1646531462487,9.16046765,89.285,89.238,89.3959]
[1646531462687,6.12835191,89.285,89.238,89.3959]
[1646531467297,9.16046765,89.285,89.238,89.3959]
[1646531467498,6.12835191,89.285,89.238,89.3959]
[1646531468399,9.16046765,89.285,89.238,89.3959]
[1646531468599,6.12835191,89.285,89.238,89.3959]
[1646531468802,6.12835191,89.284,89.238,89.3959]
[1646531469000,6.12835191,89.285,89.238,89.3959]
[1646531469505,9.16046765,89.285,89.238,89.3959]
[1646531473415,3.03211574,89.282,89.238,89.3959]
[1646531474217,9.16046765,89.285,89.238,89.3959]
[1646531475822,3.03211574,89.284,89.238,22.5859]
[1646531479018,9.16046765,89.283,89.238,22.5859]
[1646531479226,3.03211574,89.283,89.238,22.5859]
[1646531480022,3.03211574,89.284,89.238,22.5859]
[1646531480223,3.03211574,89.283,89.238,22.5859]
[1646531481226,3.03211574,89.284,89.238,22.5859]
[1646531481425,3.03211574,89.283,89.238,22.5859]
[1646531482125,3.03211574,89.284,89.238,22.5859]
[1646531482324,3.03211574,89.283,89.238,22.5859]
[1646531482928,3.03211574,89.284,89.238,22.5859]
[1646531483126,3.03211574,89.284,89.238,39.0258]
[1646531483627,1.51045144,89.259,89.238,39.0258]
[1646531483827,1.51045144,89.258,89.239,5.602]
[1646531485531,1.51045144,89.258,89.238,22.5859]
[1646531487333,1.51045144,89.258,89.238,89.3959]
[1646531487534,1.51045144,89.262,89.239,5.602]
[1646531487934,1.51045144,89.263,89.239,5.602]
[1646531489045,1.51045144,89.263,89.214,25.07699187]
[1646531489235,1.51045144,89.256,89.213,24.3414]
[1646531489435,1.51045144,89.249,89.213,24.3414]
[1646531489636,1.51045144,89.247,89.213,24.3414]
[1646531490035,1.95851603,89.249,89.213,24.3414]
[1646531490437,1.51045144,89.248,89.213,24.3414]
[1646531490642,1.51045144,89.237,89.203,5.603]
[1646531490839,0.44806459,89.249,89.203,5.603]
[1646531490840,1.51045144,89.234,89.203,5.603]
[1646531491240,1.51045144,89.234,89.202,5.604]
[1646531491440,1.51045144,89.233,89.202,5.604]
[1646531491838,1.51045144,89.233,89.201,5.604]
[1646531492041,1.51045144,89.238,89.201,5.604]
[1646531492239,1.51045144,89.235,89.201,5.604]
[1646531492439,1.51045144,89.236,89.201,5.604]
[1646531492642,1.51045144,89.235,89.201,5.604]
[1646531493845,1.51045144,89.238,89.201,5.604]
[1646531494443,1.51045144,89.239,89.201,5.604]
[1646531495948,1.51045144,89.241,89.201,5.604]
[1646531497547,1.51045144,89.24,89.201,5.604]
[1646531497970,1.51045144,89.242,89.201,5.604]
[1646531498673,1.51045144,89.242,89.183,54.75688913]
[1646531499074,1.51045144,89.241,89.183,71.27798913]
[1646531499774,1.51045144,89.242,89.183,71.27798913]
[1646531499973,1.51045144,89.242,89.184,5.604]
[1646531500474,1.51045144,89.242,89.185,25.07361187]
[1646531500678,1.51045144,89.242,89.186,5.604]
[1646531500974,1.51045144,89.242,89.186,30.67761187]
[1646531501876,1.51045144,89.242,89.187,66.81]
[1646531502079,23.4048,89.251,89.156,22.73988958]
[1646531502080,1.51045144,89.243,89.156,22.73988958]
[1646531502378,1.51045144,89.234,89.168,5.85269139]
[1646531502577,1.51045144,89.222,89.154,16.7764]
[1646531502877,1.51045144,89.225,89.155,24.1615]
[1646531503076,5.606,89.224,89.156,123.56761164]
[1646531503279,23.0627,89.223,89.156,123.56761164]
[1646531503478,5.606,89.224,89.156,145.79882067]
[1646531503678,15.99,89.26,89.156,145.79882067]
[1646531503679,1.51045144,89.234,89.158,66.81]
[1646531503880,1.51045144,89.242,89.16,82.8]
[1646531504079,1.51045144,89.244,89.162,66.81]
[1646531504280,1.51045144,89.244,89.164,66.81]
[1646531504481,1.51045144,89.245,89.166,66.81]
[1646531504879,11.37061595,89.266,89.166,66.81]
[1646531504880,1.51045144,89.246,89.168,66.81]
[1646531505080,1.51045144,89.246,89.17,66.81]
[1646531505286,1.51045144,89.246,89.181,66.81]
[1646531505480,1.51045144,89.246,89.185,66.81]
[1646531505685,1.51045144,89.246,89.187,66.81]
[1646531505884,1.51045144,89.246,89.184,64.21065173]
[1646531505885,1.51045144,89.246,89.188,72.414]
[1646531506081,1.51045144,89.246,89.19,66.81]
[1646531506281,1.51045144,89.246,89.192,66.81]
[1646531506484,1.51045144,89.247,89.194,66.81]
[1646531506683,1.51045144,89.247,89.196,66.81]
[1646531506882,1.51045144,89.247,89.198,66.81]
[1646531507083,1.51045144,89.247,89.199,23.4585]
[1646531507284,1.51045144,89.247,89.2,5.603]
[1646531511088,1.51045144,89.246,89.2,5.603]
[1646531511291,1.51045144,89.247,89.2,5.603]
[1646531511890,1.51045144,89.246,89.2,5.603]
[1646531513791,1.51045144,89.244,89.2,5.603]
[1646531514195,5.603,89.261,89.2,5.603]
[1646531514196,1.51045144,89.245,89.2,5.603]
[1646531514392,1.51045144,89.244,89.2,5.603]
[1646531515997,1.51045144,89.242,89.199,23.4585]
[1646531516798,1.51045144,89.241,89.199,23.4585]
[1646531517196,1.51045144,89.242,89.199,23.4585]
[1646531517999,1.51045144,89.236,89.199,23.4585]
[1646531518999,1.51045144,89.236,89.2,5.604]
[1646531520003,1.51045144,89.233,89.2,5.604]
[1646531520803,1.51045144,89.226,89.2,5.604]
[1646531521005,1.51045144,89.225,89.2,5.604]
[1646531521403,1.51045144,89.227,89.2,5.604]
[1646531522104,1.51045144,89.228,89.2,5.604]
[1646531522303,1.51045144,89.23,89.2,5.604]
[1646531522704,1.51045144,89.231,89.2,5.604]
[1646531522904,1.51045144,89.23,89.2,5.604]
[1646531523305,1.51045144,89.227,89.2,5.604]
[1646531524021,1.51045144,89.228,89.2,5.604]
[1646531524222,1.51045144,89.23,89.2,5.604]
[1646531525424,1.51045144,89.229,89.2,5.604]
[1646531526826,1.51045144,89.23,89.2,5.604]
[1646531527029,1.51045144,89.228,89.2,5.604]
[1646531527228,1.51045144,89.229,89.2,5.604]
[1646531527429,1.51045144,89.23,89.2,5.604]
[1646531528030,1.51045144,89.231,89.2,5.604]
[1646531529131,1.51045144,89.23,89.2,5.604]
[1646531529534,1.51045144,89.228,89.2,5.604]
[1646531532241,1.51045144,89.227,89.2,5.604]
[1646531533639,1.51045144,89.224,89.2,5.604]
[1646531533840,1.51045144,89.217,89.168,66.81]
[1646531534041,1.51045144,89.217,89.169,24.392]
[1646531534240,1.51045144,89.215,89.169,24.392]
[1646531534441,117.63088672,89.244,89.169,24.392]
[1646531534442,1.51045144,89.214,89.169,24.392]
[1646531534647,1.35308581,89.213,89.169,24.392]
[1646531534842,1.51045144,89.212,89.169,24.392]
[1646531535043,1.35308581,89.213,89.14,26.07559874]
[1646531535044,1.51045144,89.199,89.14,28.911734]
[1646531535241,1.51045144,89.198,89.141,24.392]
[1646531535444,9.13,89.198,89.141,24.392]
[1646531535643,9.13,89.198,89.141,27.22813526]
[1646531536249,22.716,89.197,89.141,27.22813526]
[1646531539547,22.716,89.197,89.142,5.607]
[1646531539947,22.716,89.197,89.143,2.83613526]
[1646531540148,22.716,89.197,89.144,5.607]
[1646531540547,22.716,89.197,89.144,8.44313526]
[1646531542050,22.716,89.197,89.144,2.83613526]
[1646531542954,22.716,89.197,89.145,5.607]
[1646531552079,5.607,89.196,89.145,5.607]
[1646531554481,22.716,89.197,89.145,5.607]
[1646531560985,24.22645144,89.197,89.145,5.607]
[1646531561585,1.51045144,89.194,89.145,5.607]
[1646531562185,1.51045144,89.195,89.145,5.607]
[1646531563588,1.51045144,89.19,89.145,5.607]
[1646531564992,1.51045144,89.19,89.141,24.392]
[1646531565393,1.51045144,89.183,89.141,24.392]
[1646531565594,1.51045144,89.181,89.141,24.392]
[1646531565792,1.51045144,89.175,89.141,24.392]
[1646531566394,12.64245702,89.175,89.141,24.392]
[1646531567495,12.64245702,89.175,89.118,72.66538808]
[1646531567696,30.76215144,89.174,89.119,22.9949]
[1646531568097,1.51045144,89.173,89.119,22.9949]
[1646531568296,30.76215144,89.174,89.119,22.9949]
[1646531568498,29.2517,89.174,89.119,22.9949]
[1646531568697,23.6447,89.174,89.119,22.9949]
[1646531569099,5.607,89.173,89.119,22.9949]
[1646531569499,29.2517,89.174,89.119,22.9949]
[1646531572003,23.6447,89.174,89.12,5.607]
[1646531573606,5.607,89.173,89.12,5.607]
[1646531573907,23.6447,89.174,89.121,2.83613526]
[1646531574506,23.6447,89.174,89.122,5.607]
[1646531577228,23.6447,89.174,89.123,2.83613526]
[1646531577428,23.6447,89.174,89.124,5.607]
[1646531578529,23.6447,89.174,89.123,2.83613526]
[1646531580733,1.51045144,89.167,89.123,2.83613526]
[1646531580934,1.51045144,89.169,89.123,2.83613526]
[1646531581833,1.51045144,89.169,89.124,5.607]
[1646531582737,1.51045144,89.171,89.124,5.607]
[1646531583136,1.51045144,89.172,89.124,5.607]
[1646531584637,1.51045144,89.173,89.124,5.607]
[1646531584837,1.51045144,89.172,89.124,5.607]
[1646531585037,1.51045144,89.173,89.124,5.607]
[1646531585940,1.51045144,89.172,89.124,5.607]
[1646531586538,1.51045144,89.173,89.124,5.607]
[1646531587441,113.01045144,89.173,89.124,5.607]
[1646531587741,113.01045144,89.173,89.1,112.1]
[1646531587742,113.01045144,89.173,89.105,2.83613526]
[1646531588041,1.51045144,89.155,89.095,2.83613526]
[1646531588241,1.51045144,89.152,89.095,2.83613526]
[1646531588442,24.6217,89.151,89.095,2.83613526]
[1646531588646,26.13215144,89.151,89.096,66.25504699]
[1646531589442,24.6217,89.151,89.096,66.25504699]
[1646531589643,24.6217,89.151,89.097,2.83613526]
[1646531589842,24.6217,89.151,89.098,5.61]